[Event "Satka Autumn 2017"]
[Site "Satka"]
[Date "2017.09.16"]
[Round "5"]
[White "Pogorelskikh, Sofia"]
[Black "Maletina, Tatiana"]
[Result "0-1"]
[ECO "C18"]
[WhiteElo "2023"]
[BlackElo "2241"]
[Annotator "ChessBase"]
[PlyCount "126"]
[EventDate "2017.??.??"]
[EventType "swiss"]
[EventCountry "RUS"]
[SourceTitle "playchess.com"]
[Source "ChessBase"]
[SourceQuality "1"]
[TimeControl "5400+30"]

1. e4 {[%emt 0:02:20]} e6 {[%emt 0:00:07]} 2. d4 {[%emt 0:00:21]} d5 {[%emt 0:00:05]} 3. Nc3 {[%emt 0:00:06]} Bb4 {[%emt 0:00:05]} 4. e5 {[%emt 0:00:17]} c5 {[%emt 0:00:06]} 5. a3 {[%emt 0:00:10]} Bxc3+ {[%emt 0:00:14]} 6. bxc3 {[%emt 0:00:06]} Qa5 {[%emt 0:00:37]} 7. Bd2 {[%emt 0:00:18]} Qa4 {[%emt 0:00:05]} 8. Qb1 {[%emt 0:00:23]} c4 {[%emt 0:00:20]} 9. Nh3 {[%emt 0:00:57]} Nc6 {[%emt 0:03:58]} 10. Nf4 {[%emt 0:00:18]} Nge7 {[%emt 0:05:15]} 11. Nh5 {[%emt 0:00:18]} Rg8 {[%emt 0:00:05]} 12. g3 {[%emt 0:00:16]} Bd7 {[%emt 0:00:46]} 13. Bh3 {[%emt 0:01:44]} O-O-O {[%emt 0:00:06]} 14. O-O {[%emt 0:00:48]} h6 {[%emt 0:07:20]} 15. Qb2 {[%emt 0:03:45]} Kb8 {[%emt 0:05:50]} 16. Rae1 {[%emt 0:08:57]} Bc8 {[%emt 0:12:49]} 17. Re2 {[%emt 0:10:44]} g6 {[%emt 0:02:05]} 18. Nf6 {[%emt 0:03:49]} Rh8 {[%emt 0:00:04]} 19. Qc1 {[%emt 0:02:47]} Ng8 {[%emt 0:00:17]} 20. Nxg8 {[%emt 0:05:21]} Rdxg8 {[%emt 0:00:05]} 21. Bg2 {[%emt 0:01:25]} Qa5 {[%emt 0:01:52]} 22. Re3 {[%emt 0:08:49]} g5 {[%emt 0:08:07]} 23. g4 {[%emt 0:06:15]} Qd8 {[%emt 0:19:42]} 24. Rf3 {[%emt 0:07:53]} Rg7 {[%emt 0:02:43]} 25. Rf6 {[%emt 0:03:56]} Ne7 {[%emt 0:00:12]} 26. f4 {[%emt 0:01:30]} Ng8 {[%emt 0:10:22]} 27. fxg5 {[%emt 0:00:21]} Nxf6 {[%emt 0:00:03]} 28. gxf6 {[%emt 0:05:03]} Rxg4 {[%emt 0:01:50]} 29. Bxh6 {[%emt 0:00:40]} Qg8 {[%emt 0:00:07]} 30. Bg7 {[%emt 0:00:39]} Rhh4 {[%emt 0:00:34]} 31. Rf3 {[%emt 0:02:31]} Qh7 {[%emt 0:00:21]} 32. Rg3 {[%emt 0:01:32]} Rxg3 {[%emt 0:00:06]} 33. hxg3 {[%emt 0:00:06]} Rg4 {[%emt 0:00:02]} 34. Kf2 {[%emt 0:01:29]} Qg6 {[%emt 0:00:28]} 35. Bf3 {[%emt 0:02:20]} Rxg3 {[%emt 0:00:05]} 36. Qh6 {[%emt 0:01:09]} Rxf3+ {[%emt 0:09:10]} 37. Kxf3 {[%emt 0:00:08]} Qxc2 {[%emt 0:00:05]} 38. Qe3 {[%emt 0:00:50]} b6 {[%emt 0:00:25]} 39. Bh6 {[%emt 0:04:12]} Kb7 {[%emt 0:04:13]} 40. Qc1 {[%emt 0:01:09]} Qe4+ {[%emt 0:00:18]} 41. Kf2 {[%emt 0:00:24]} Bd7 {[%emt 0:01:13]} 42. Qe3 {[%emt 0:00:38]} Qh4+ {[%emt 0:00:17]} 43. Ke2 {[%emt 0:01:09]} Ba4 {[%emt 0:00:05]} 44. Bf8 {[%emt 0:01:23]} Bc2 {[%emt 0:00:59]} 45. Qf2 {[%emt 0:03:02]} Qg4+ {[%emt 0:00:25]} 46. Kd2 {[%emt 0:00:28]} Qd1+ {[%emt 0:00:26]} 47. Ke3 {[%emt 0:00:10]} Qd3+ {[%emt 0:00:05]} 48. Kf4 {[%emt 0:00:05]} Qxc3 {[%emt 0:00:18]} 49. Bb4 {[%emt 0:00:17]} Qd3 {[%emt 0:00:14]} 50. Qd2 {[%emt 0:00:54]} Qf1+ {[%emt 0:00:26]} 51. Ke3 {[%emt 0:00:25]} Be4 {[%emt 0:00:14]} 52. Qe2 {[%emt 0:01:01]} Qh3+ {[%emt 0:01:03]} 53. Kd2 {[%emt 0:00:27]} a5 {[%emt 0:00:19]} 54. Bc3 {[%emt 0:00:23]} Bd3 {[%emt 0:00:48]} 55. Qf2 {[%emt 0:00:58]} Bg6 {[%emt 0:00:41]} 56. Qe3 {[%emt 0:01:27]} Qf5 {[%emt 0:00:16]} 57. Ke2 {[%emt 0:01:14]} Ka6 {[%emt 0:00:25]} 58. Qd2 {[%emt 0:01:00]} Qg4+ {[%emt 0:01:39]} 59. Kf2 {[%emt 0:01:14]} Be4 {[%emt 0:00:07]} 60. Qb2 {[%emt 0:00:58]} Qf3+ {[%emt 0:01:26]} 61. Ke1 {[%emt 0:00:47]} Bd3 {[%emt 0:00:28]} 62. a4 {[%emt 0:02:10]} Ka7 {[%emt 0:01:27]} 63. Qd2 {[%emt 0:02:53]} Qf1# {[%emt 0:00:07] Kd1 Qe1+} 0-1

[Event "Satka Autumn 2017"]
[Site "Satka"]
[Date "2017.09.16"]
[Round "5"]
[White "Chan, Naruna"]
[Black "Protopopova, Anastasiya"]
[Result "0-1"]
[ECO "D45"]
[WhiteElo "1951"]
[BlackElo "2152"]
[Annotator "NA"]
[PlyCount "112"]
[EventDate "2017.??.??"]
[EventType "swiss"]
[EventCountry "RUS"]
[SourceTitle "playchess.com"]
[Source "ChessBase"]
[SourceQuality "1"]
[TimeControl "5400+30"]

{[%evp 8,84,31,27,30,26,25,12,16,0,16,1,12,-13,-18,-22,-16,-30,-8,-20,-7,32767,32767,32767,32767,32767,32767,32767,32767,-35,0,-106,-89,-140,-159,-165,-110,-122,-105,-119,-110,-104,-96,-99,-93,-174,-116,-112,-60,-70,-77,-126,-118,-116,-101,-107,-113,-118,-122,-159,-163,-163,32767,-152,-141,-145,-152,-165,-149,-161,-147,-158,-151,32767,32767,32767,32767,-135,-102]} 1. d4 {[%emt 0:00:00]} d5 {[%emt 0:00:11]} 2. c4 {[%emt 0:01:50]} c6 {[%emt 0:00:25]} 3. Nf3 {[%emt 0:00:43]} Nf6 {[%emt 0:00:20]} 4. Nc3 {[%emt 0:01:16]} a6 {[%emt 0:00:24]} 5. e3 {[%emt 0:03:23]} e6 {[%emt 0:00:31]} 6. Bd3 {[%emt 0:00:37]} dxc4 {[%emt 0:04:32] D45: Semi-Slav: 5 e3} 7. Bxc4 {[%emt 0:00:20]} b5 {[%emt 0:04:31]} (7... c5 8. O-O b5 9. Be2 Bb7 10. dxc5 Nc6 11. Nd2 Bxc5 12. Nde4 Nxe4 13. Nxe4 Be7 14. b3 Nb4 15. Bf3 O-O 16. Ba3 Rc8 17. Nf6+ Bxf6 18. Bxb7 Bxa1 19. Bxb4 {½-½ (33) Karjakin,S (2772)-Carlsen,M (2853) New York 2016}) 8. Bb3 {[%emt 0:03:36]} Bb7 {[%emt 0:02:15]} 9. O-O {[%emt 0:00:12] LiveBook: 3 Games} Be7 {[%emt 0:02:36]} 10. a3 {[%emt 0:03:01]} c5 {[%emt 0:01:24]} 11. dxc5 {[%emt 0:04:01]} Nbd7 {[%emt 0:05:53]} 12. Bc2 {[%emt 0:09:11]} (12. c6 $5 Bxc6 13. Bd2 $15) 12... Nxc5 {[%emt 0:03:14]} 13. b4 $146 {[%emt 0:04:38]} ({Find the theoretical novelty and annotate with similar games:} 13. Qxd8+ Rxd8 14. Rd1 Rxd1+ 15. Nxd1 O-O 16. b4 Nce4 {0-1 (67) Angelov,G (2128)-Metev,M (2018) Sofia 2016}) 13... Ncd7 {[%emt 0:01:31]} 14. Bb2 {[%emt 0:11:09]} O-O {[%emt 0:01:57]} 15. Qe2 {[%emt 0:07:37]} Rc8 {[%emt 0:03:34]} 16. Rfd1 {[%emt 0:02:08]} Qc7 {[%emt 0:01:20]} 17. Rac1 {[%emt 0:03:21]} Qb8 {[%emt 0:04:35]} 18. e4 {[%emt 0:10:32]} Rfd8 {[%emt 0:03:06]} 19. Nd4 {[%emt 0:03:47]} (19. Nb1 $11 {keeps the balance.}) 19... Ne5 {[%emt 0:02:43]} 20. Bb1 {[%emt 0:08:29] [#]} ({White should play} 20. Nb1 $15) 20... Nc4 $1 {[%emt 0:08:08]} ({Don't do} 20... Neg4 21. Nf3 $15) 21. Nf3 {[%emt 0:03:46]} Nxb2 {[%emt 0:02:10]} (21... Rxd1+ $19 22. Rxd1 Nxb2 23. Qxb2 Qc7) 22. Rxd8+ {[%emt 0:00:36]} Bxd8 {[%emt 0:01:23]} 23. Qxb2 {[%emt 0:00:06]} Qf4 {[%emt 0:02:12]} 24. Qd2 {[%emt 0:05:11]} Qxd2 {[%emt 0:05:44]} 25. Nxd2 {[%emt 0:00:05]} Bb6 {[%emt 0:00:08]} 26. Kf1 {[%emt 0:03:40]} (26. Nb3 $17 {keeps fighting.}) 26... Bd4 {[%emt 0:06:51]} (26... Ng4 $19 27. Ne2 Nxf2 28. Rxc8+ Bxc8) 27. Ne2 {[%emt 0:00:28]} Bb2 {[%emt 0:00:20]} 28. Rxc8+ {[%emt 0:01:08]} Bxc8 {[%emt 0:00:01]} 29. a4 {[%emt 0:04:14]} ({White should try} 29. Nf4 $15) 29... bxa4 {[%emt 0:03:05]} 30. Nc4 {[%emt 0:00:31] [#]} Ba1 $1 {[%emt 0:00:30]} 31. Nb6 {[%emt 0:01:55]} Bd7 {[%emt 0:00:52]} 32. Nxd7 {[%emt 0:00:58]} Nxd7 {[%emt 0:00:07]} 33. Bd3 {[%emt 0:01:47]} Ne5 {[%emt 0:01:38]} 34. Bc2 {[%emt 0:01:58]} a3 {[%emt 0:00:28]} 35. Nc1 {[%emt 0:00:20]} Bb2 {[%emt 0:07:03]} 36. Na2 {[%emt 0:00:17]} g5 {[%emt 0:03:08]} 37. Ke2 {[%emt 0:00:14]} Kf8 {[%emt 0:00:51]} 38. h3 {[%emt 0:00:41]} Ke7 $17 {[%emt 0:03:09]} 39. g3 {[%emt 0:00:22]} Kd7 {[%emt 0:00:56]} 40. f4 {[%emt 0:00:22]} gxf4 {[%emt 0:00:02]} 41. gxf4 {[%emt 0:00:02]} Nc6 {[%emt 0:00:12]} 42. Bd3 {[%emt 0:01:58]} Nd4+ {[%emt 0:00:51]} 43. Ke3 {[%emt 0:00:00]} Nb5 {[%emt 0:00:17]} 44. Kd2 {[%emt 0:00:42]} Kc6 {[%emt 0:00:33]} 45. h4 {[%emt 0:00:23]} h6 {[%emt 0:00:28]} 46. Be2 {[%emt 0:00:27]} f6 {[%emt 0:00:59]} 47. Bf1 {[%emt 0:00:37]} Kb6 {[%emt 0:00:33]} 48. Bc4 {[%emt 0:00:40]} e5 {[%emt 0:06:47]} 49. fxe5 {[%emt 0:00:15]} Bxe5 {[%emt 0:01:58]} 50. Kc2 {[%emt 0:00:42]} Nd4+ {[%emt 0:00:21]} 51. Kb1 {[%emt 0:00:21]} Nf3 {[%emt 0:00:07]} 52. Be2 {[%emt 0:00:27]} Nxh4 {[%emt 0:00:37]} 53. Nc1 {[%emt 0:00:19]} Ng2 {[%emt 0:01:04]} 54. Ka2 {[%emt 0:00:45]} Nf4 {[%emt 0:02:25]} 55. Bf3 {[%emt 0:00:06]} Bb2 {[%emt 0:00:20]} 56. Ne2 {[%emt 0:00:45]} Nd3 {[%emt 0:00:33]} 0-1

[Event "Satka Autumn 2017"]
[Site "Satka"]
[Date "2017.09.16"]
[Round "5"]
[White "Matsenko, Elena"]
[Black "Simakova, Elena"]
[Result "1-0"]
[ECO "A05"]
[WhiteElo "1927"]
[BlackElo "1951"]
[Annotator "NA RC"]
[PlyCount "81"]
[EventDate "2017.??.??"]
[EventType "swiss"]
[EventCountry "RUS"]
[SourceTitle "playchess.com"]
[Source "ChessBase"]
[SourceQuality "1"]
[TimeControl "5400+30"]

{[%evp 8,81,15,0,0,0,30,20,15,16,33,18,22,26,32,27,6,0,-3,-14,-8,-11,8,0,3,0,0,0,0,0,12,5,17,0,17,0,32767,32767,32767,32767,32767,16,11,32767,0,32767,32767,32767,32767,0,0,0,5,0,0,1,0,0,0,-38,-16,-25,0,0,0,0,0,0,0,0,0,0,0,0,29970,29982]} 1. Nf3 {[%emt 0:00:00]} Nf6 {[%emt 0:00:14]} 2. c4 {[%emt 0:00:00]} g6 {[%emt 0:00:23]} 3. b3 {[%emt 0:00:00]} Bg7 {[%emt 0:00:14]} 4. Bb2 {[%emt 0:00:02]} d6 {[%emt 0:00:37]} 5. e3 {[%emt 0:00:20]} O-O {[%emt 0:00:26]} 6. d4 {[%emt 0:00:17]} Nbd7 {[%emt 0:00:43]} (6... e5 $5) 7. Be2 {[%emt 0:00:24]} Re8 {[%emt 0:00:50]} 8. O-O {[%emt 0:00:17]} c6 {[%emt 0:06:38]} 9. Nc3 {[%emt 0:02:02]} Qc7 {[%emt 0:03:07] LiveBook: 3 Games} 10. Qc2 {[%emt 0:03:11]} e5 {[%emt 0:02:04]} 11. dxe5 {[%emt 0:00:16]} dxe5 {[%emt 0:00:07]} 12. Rfd1 {[%emt 0:00:35]} Nc5 {[%emt 0:05:54]} 13. b4 {[%emt 0:07:18] E61: King's Indian: Early deviations for White, including Smyslov System} Bf5 {[%emt 0:03:16]} 14. Qc1 {[%emt 0:00:04]} Nce4 {[%emt 0:01:56]} 15. Nxe4 {[%emt 0:00:23]} Nxe4 $146 {[%emt 0:00:44]} ({Predecessor:} 15... Bxe4) 16. Nd2 {[%emt 0:01:55]} Nxd2 {[%emt 0:07:58]} 17. Qxd2 {[%emt 0:01:12]} Rad8 {[%emt 0:06:25]} 18. Qc3 {[%emt 0:00:22]} Rxd1+ {[%emt 0:04:49]} 19. Rxd1 {[%emt 0:00:10]} Rd8 {[%emt 0:02:05]} 20. Rxd8+ {[%emt 0:00:38]} Qxd8 {[%emt 0:00:05]} 21. h3 {[%emt 0:00:34]} Qe7 {[%emt 0:05:32]} 22. a3 {[%emt 0:00:12]} h5 {[%emt 0:06:38]} 23. c5 {[%emt 0:01:41]} f6 {[%emt 0:04:58]} 24. Bc4+ {[%emt 0:02:40]} Be6 {[%emt 0:06:16]} 25. Qd3 {[%emt 0:00:38]} Bxc4 {[%emt 0:01:03]} 26. Qxc4+ {[%emt 0:00:04]} Kh7 {[%emt 0:01:46]} 27. a4 {[%emt 0:01:54]} a6 {[%emt 0:04:21]} 28. Kf1 {[%emt 0:01:00]} Qd7 {[%emt 0:02:33]} 29. Ke2 {[%emt 0:00:40]} Bh6 {[%emt 0:01:03]} 30. Qd3 {[%emt 0:01:16]} Qxd3+ {[%emt 0:03:47]} 31. Kxd3 {[%emt 0:00:06]} Kg7 {[%emt 0:00:11]} 32. Kc4 {[%emt 0:01:23]} Kf7 {[%emt 0:00:18]} 33. b5 {[%emt 0:01:11]} axb5+ $1 {[%emt 0:00:07]} 34. axb5 {[%emt 0:00:05]} Ke6 {[%emt 0:00:21]} 35. e4 {[%emt 0:01:06]} f5 {[%emt 0:04:25]} 36. f3 {[%emt 0:01:01]} Be3 {[%emt 0:01:05]} 37. Bc3 {[%emt 0:01:41]} fxe4 {[%emt 0:01:08]} 38. fxe4 {[%emt 0:00:07]} Bf2 {[%emt 0:00:13]} 39. Bd2 {[%emt 0:01:05]} Bd4 {[%emt 0:00:33]} 40. Bg5 {[%emt 0:00:21]} Be3 {[%emt 0:00:52]} (40... Kd7 $11) 41. Bxe3 1-0

[Event "Satka Autumn 2017"]
[Site "Satka"]
[Date "2017.09.16"]
[Round "5"]
[White "Mirgalina, Anna"]
[Black "Nasybullina, Alfia"]
[Result "0-1"]
[ECO "A28"]
[WhiteElo "1308"]
[BlackElo "2045"]
[Annotator "NA RC"]
[PlyCount "54"]
[EventDate "2017.??.??"]
[EventType "swiss"]
[EventCountry "RUS"]
[SourceTitle "playchess.com"]
[Source "ChessBase"]
[SourceQuality "1"]
[TimeControl "5400+30"]

{[%evp 8,49,-1,-15,32767,32767,32767,32767,-45,-47,-37,-85,-89,-135,-122,-115,-120,-299,-290,-385,-387,-545,-543,-581,-609,-972,-1028,-1440,-1522,-2079,-5611,-5795,-2332,-29988,-29990,-29989,-29992,-29992,-29993,-29995,-29996,-29996,-29997,-29997]} 1. c4 {[%emt 0:00:00]} e5 {[%emt 0:00:11]} 2. Nc3 {[%emt 0:00:00]} Nf6 {[%emt 0:00:10]} 3. Nf3 {[%emt 0:00:21]} Nc6 {[%emt 0:00:07]} 4. d4 {[%emt 0:00:51]} exd4 {[%emt 0:00:30] LiveBook: 530 Games} 5. Nxd4 {[%emt 0:00:10]} Bb4 {[%emt 0:00:19]} 6. Qd3 {[%emt 0:01:44] A28: English Opening: Four Knights Variation} (6. Bg5 h6 7. Bh4 Bxc3+ 8. bxc3 Ne5 9. e3 O-O 10. Be2 Ng6 11. Bg3 Ne4 12. Qc2 Re8 13. Bd3 Nxg3 14. hxg3 Ne5 15. Be2 d6 16. O-O b6 17. f4 {½-½ (48) Rakhmanov,A (2662)-Matlakov,M (2691) Sochi 2016}) 6... O-O {[%emt 0:03:18]} 7. Nxc6 {[%emt 0:02:42]} dxc6 {[%emt 0:00:11]} 8. Qxd8 {[%emt 0:02:26]} Rxd8 {[%emt 0:00:12]} 9. Bd2 $146 {[%emt 0:00:42]} ({Find the theoretical novelty and annotate with similar games:} 9. Bg5 Be6 10. e4 h6 11. Bxf6 gxf6 12. f4 Rd4 13. Kf2 f5 {0-1 (29) Fiser,O (1377)-O'Toole,R (1855) LSS email 2012}) 9... Be6 {[%emt 0:00:09]} 10. e3 {[%emt 0:00:34]} Ng4 {[%emt 0:04:18]} 11. a3 {[%emt 0:02:56]} Be7 {[%emt 0:02:04]} 12. Rc1 $2 {[%emt 0:05:47] [#]} (12. Ne4 $17 {was forced.}) 12... Nxf2 $1 {[%emt 0:00:24]} 13. Kxf2 {[%emt 0:01:26]} Rxd2+ {[%emt 0:00:06]} 14. Ke1 {[%emt 0:00:33]} Rxb2 {[%emt 0:00:17]} 15. Be2 {[%emt 0:01:20]} Bxa3 {[%emt 0:00:38]} 16. Rd1 {[%emt 0:00:40]} Bb4 {[%emt 0:00:35]} 17. Rd3 {[%emt 0:00:39]} Bxc4 {[%emt 0:00:39]} 18. Rd7 {[%emt 0:01:30]} Bxc3+ {[%emt 0:00:28]} 19. Kf2 {[%emt 0:00:34]} Bxe2 {[%emt 0:00:27]} 20. Rxc7 {[%emt 0:01:49]} Bh5+ {[%emt 0:00:29]} 21. Kg3 {[%emt 0:01:49]} Be5+ {[%emt 0:00:15]} 22. Kh3 {[%emt 0:00:42]} Bxc7 {[%emt 0:00:12]} 23. g3 {[%emt 0:01:29]} f5 {[%emt 0:00:23]} 24. Kh4 {[%emt 0:01:15]} Bg4 {[%emt 0:00:48]} 25. Kg5 {[%emt 0:00:52]} Kf7 {[%emt 0:00:04]} 26. h3 {[%emt 0:00:56]} h6+ {[%emt 0:00:05]} 27. Kh4 {[%emt 0:00:28]} g5# {[%emt 0:00:04]} 0-1

[Event "Satka Autumn 2017"]
[Site "Satka"]
[Date "2017.09.17"]
[Round "6"]
[White "Nasybullina, Alfia"]
[Black "Gutkovich, Polina"]
[Result "1/2-1/2"]
[ECO "D43"]
[WhiteElo "2045"]
[BlackElo "2012"]
[Annotator "NA"]
[PlyCount "156"]
[EventDate "2017.??.??"]
[EventType "swiss"]
[EventCountry "RUS"]
[SourceTitle "playchess.com"]
[Source "ChessBase"]
[SourceQuality "1"]
[TimeControl "5400+30"]

{[%evp 8,144,20,2,13,0,4,10,0,0,0,-29,-4,-14,-12,-28,-24,-61,32767,32767,-68,-65,-39,-33,-16,-82,83,-8,-13,-4,-8,2,54,33,58,0,32767,32767,32767,32767,32767,32767,32767,32767,32767,32767,32767,32767,32767,32767,32767,32767,32767,32767,90,0,43,58,64,29,70,0,0,-59,-84,-64,-31,-52,32767,32767,32767,-17,-9,0,-3,0,-2,-93,-67,-81,-110,-68,-47,32767,32767,32767,32767,-44,-79,-52,-62,-64,-74,-505,-251,-192,32767,32767,32767,32767,32767,32767,32767,32767,32767,32767,32767,32767,32767,32767,32767,32767,32767,32767,441,509,532,734,1110,1022,781,1168,705,5189,616,871,793,124,126,123,125,8,8,8,8,0,8,0,0]} 1. d4 {[%emt 0:00:00]} d5 {[%emt 0:00:05]} 2. c4 {[%emt 0:00:00]} e6 {[%emt 0:00:04]} 3. Nc3 {[%emt 0:00:00]} c6 {[%emt 0:00:02]} 4. Nf3 {[%emt 0:00:32]} Nf6 {[%emt 0:00:09]} 5. cxd5 {[%emt 0:00:17]} exd5 {[%emt 0:00:04]} 6. Bg5 {[%emt 0:00:29]} Be7 {[%emt 0:00:10]} (6... h6 $5 {[%cal Rh6g5]} 7. Bh4 Bf5 $11) 7. e3 {[%emt 0:00:09]} Bf5 {[%emt 0:00:04]} 8. Be2 {[%emt 0:01:21]} h6 {[%emt 0:00:18] D35: Queen's Gambit Declined: Exchange Variation} (8... Nbd7 9. Nd2 O-O 10. Bf4 Re8 11. h3 Nf8 12. g4 Be4 13. Rg1 Bd6 14. Bg3 Bxg3 15. Rxg3 Qb6 16. g5 {1-0 (61) Bellaiche,A (2463)-Ginsburg,G (2454) Jerusalem 2017}) 9. Bh4 {[%emt 0:00:26]} Nbd7 {[%emt 0:00:16]} 10. O-O {[%emt 0:00:37] LiveBook: 3 Games} O-O {[%emt 0:00:08]} 11. Qb3 {[%emt 0:01:52]} Qb6 {[%emt 0:01:34]} 12. Qxb6 {[%emt 0:00:36]} axb6 {[%emt 0:01:59]} 13. Rfc1 $146 {[%emt 0:05:24]} ({Predecessor:} 13. Ne5 Rfe8 14. Nxd7 Nxd7 15. Bxe7 Rxe7 16. Rfc1 {½-½ (59) Komarov,J (1883)-Raisov,I (2037) Saratov 2015}) 13... b5 {[%emt 0:06:28]} 14. a4 {[%emt 0:06:18]} b4 {[%emt 0:00:10]} 15. Nd1 {[%emt 0:00:05]} Ra5 {[%emt 0:00:18]} 16. Ne5 {[%emt 0:05:03]} (16. Nd2 $1 $11) 16... Nb6 $2 {[%emt 0:02:23] [#]} (16... g5 $17 17. Bg3 Ne4) 17. b3 {[%emt 0:00:18]} (17. Rxc6 $1 $16 {[%mdl 512]} Nxa4 (17... bxc6 18. Nxc6) 18. Rc7) 17... g5 {[%emt 0:00:24]} 18. Bg3 {[%emt 0:00:52]} Ne4 {[%emt 0:00:36] [#]} 19. Rxc6 $1 {[%emt 0:01:13]} Na8 {[%emt 0:15:50]} ({Bitte nicht} 19... bxc6 $6 20. Nxc6 Nxg3 21. hxg3 $16 (21. Nxe7+ Kg7 $11)) ({Günstiger ist} 19... Nxa4 $1 $11 20. Bf3 (20. bxa4 bxc6 21. Nxc6 Bd8 $11) (20. Rxh6 Nac3 $11) 20... Bd8) 20. Rxh6 {[%emt 0:29:43]} Kg7 $1 {[%emt 0:05:30]} 21. Bg4 {[%emt 0:13:51]} Bxg4 {[%emt 0:08:01]} 22. Nxg4 {[%emt 0:00:11]} Nxg3 {[%emt 0:00:03]} 23. hxg3 {[%emt 0:00:19]} f5 {[%emt 0:00:01]} 24. Re6 {[%emt 0:00:56]} Kf7 {[%emt 0:00:03]} 25. Rxe7+ {[%emt 0:00:12]} Kxe7 {[%emt 0:00:03]} 26. Ne5 {[%emt 0:00:47]} Rc8 {[%emt 0:05:01]} 27. Nd3 {[%emt 0:03:10]} Rc6 {[%emt 0:00:14]} 28. Rb1 {[%emt 0:00:27]} Nc7 {[%emt 0:02:30]} 29. g4 {[%emt 0:02:08]} fxg4 {[%emt 0:01:30]} 30. Kh2 {[%emt 0:00:07]} Kf6 {[%emt 0:02:27]} (30... Ne8 $11 {hält das Gleichgewicht.}) 31. Rb2 {[%emt 0:03:52]} ({Better is} 31. Nxb4 $16 Rb6 32. Nd3) 31... Na6 {[%emt 0:02:27]} 32. Kg3 {[%emt 0:00:48]} Kf5 {[%emt 0:00:17]} 33. Rd2 {[%emt 0:02:55]} Nc7 {[%emt 0:04:10] [#]} 34. Ne5 {[%emt 0:01:01]} (34. e4+ $1 $14 {[%mdl 512]} Kf6 (34... dxe4 35. Ne3+) 35. Nc5 (35. Kxg4 dxe4 36. Nc5 Nd5 $14) (35. Nxb4 Rb6 $15)) 34... Rc1 {[%emt 0:00:17]} 35. Nxg4 {[%emt 0:02:29]} (35. e4+ $11 Kf6 36. Nxg4+ Kg7 37. exd5) 35... b5 {[%emt 0:03:15]} 36. axb5 {[%emt 0:00:34]} Nxb5 {[%emt 0:00:15]} 37. e4+ {[%emt 0:03:29]} dxe4 {[%emt 0:01:40]} 38. Nde3+ {[%emt 0:00:30]} Kg6 {[%emt 0:01:01]} 39. Ne5+ {[%emt 0:00:17]} Kg7 {[%emt 0:00:48]} 40. N5c4 {[%emt 0:01:19]} Ra8 {[%emt 0:00:47]} 41. d5 {[%emt 0:01:29]} Rc3 {[%emt 0:00:42]} 42. d6 {[%emt 0:00:22]} (42. Kg4 $11) 42... Rd3 {[%emt 0:03:46]} ({Natürlich nicht} 42... Rxb3 43. Rd5 $11) 43. Rxd3 {[%emt 0:04:14]} exd3 {[%emt 0:00:04]} 44. Kf3 {[%emt 0:00:34]} Rd8 {[%emt 0:04:11]} 45. Nf5+ {[%emt 0:01:05]} Kf6 {[%emt 0:00:09]} 46. g4 {[%emt 0:00:08]} Nc3 {[%emt 0:02:37]} 47. Ke3 {[%emt 0:05:45]} Nd1+ {[%emt 0:00:11]} 48. Kf3 {[%emt 0:00:38]} Ke6 {[%emt 0:00:58]} 49. Kg3 {[%emt 0:01:49]} Nc3 {[%emt 0:04:13]} 50. f3 $2 {[%emt 0:00:14]} ({White has to play} 50. Kf3 $1 $15) 50... Na2 {[%emt 0:02:43]} (50... Nb1 $142 51. Ng7+ Kf7) 51. Kf2 {[%emt 0:00:29]} Nc1 {[%emt 0:00:50]} 52. Ke3 {[%emt 0:02:47]} Kd5 {[%emt 0:01:10]} 53. Nb6+ {[%emt 0:01:14]} Kc6 {[%emt 0:01:11]} 54. Nc4 {[%emt 0:00:42]} Nxb3 {[%emt 0:02:45]} 55. Kxd3 {[%emt 0:00:07]} Nc5+ {[%emt 0:00:49]} 56. Kd4 {[%emt 0:00:08]} Na4 {[%emt 0:02:42]} 57. Ne5+ {[%emt 0:00:39]} Kb5 {[%emt 0:00:19]} 58. Kd5 {[%emt 0:00:09]} b3 {[%emt 0:05:35]} 59. Nd4+ {[%emt 0:00:10]} Kb6 {[%emt 0:02:33]} 60. Nxb3 {[%emt 0:00:10]} Nc3+ {[%emt 0:01:57]} 61. Ke6 {[%emt 0:00:20]} Nb5 {[%emt 0:00:03]} 62. Ke7 {[%emt 0:01:03]} Ra8 {[%emt 0:01:44]} 63. d7 {[%emt 0:00:17]} Kc7 {[%emt 0:00:08]} 64. Nc5 {[%emt 0:00:29]} Nd4 {[%emt 0:00:41] [#]} 65. Na6+ $1 {[%emt 0:00:10]} Kb6 {[%emt 0:01:18]} 66. Nb4 {[%emt 0:00:24]} Kb5 {[%emt 0:01:16]} 67. d8=Q $2 {[%emt 0:02:07]} (67. Nbd3 $18 {bietet bessere Gewinnchancen.}) 67... Rxd8 {[%emt 0:00:04]} 68. Kxd8 {[%emt 0:00:07]} Kxb4 {[%emt 0:00:02]} 69. Ke7 {[%emt 0:00:11]} ({Better is} 69. Ke8 $16) 69... Kc5 {[%emt 0:00:08]} 70. Kf7 {[%emt 0:01:24]} Kd6 $1 {[%emt 0:00:46]} 71. Kf6 {[%emt 0:00:15]} (71. f4 $5 gxf4 72. Kf6 $11) 71... Kd5 {[%emt 0:00:08]} 72. Kxg5 {[%emt 0:00:37]} (72. f4 $5 gxf4 73. Nd3 $11) 72... Kxe5 $11 {[%emt 0:00:06]} 73. f4+ {[%emt 0:00:05]} Ke6 {[%emt 0:00:16]} 74. Kg6 {[%emt 0:00:05]} Ke7 {[%emt 0:00:41]} 75. f5 {[%emt 0:01:00]} Kf8 {[%emt 0:00:16]} 76. Kf6 {[%emt 0:00:30]} Nf3 {[%emt 0:00:14]} 77. Ke6 {[%emt 0:00:14]} Ng5+ {[%emt 0:00:15]} 78. Kf6 {[%emt 0:00:10]} Nf3 {[%emt 0:00:04]} 1/2-1/2